Cogmind - Beta 16.1 *** ADVENTURER MODE // 2026.04.25 @ 11:35:01 Player: kareds Result: Smashed by cave-in Performance ------------- Evolutions (6) 3000 Regions Visited (14) 2800 Robots Destroyed (102) 510 Value Destroyed (3346) 3346 Prototype IDs (34) 680 Alien Tech Used (0) 0 Bonus (426) 426 TOTAL SCORE: 10762 Bonus ------- Follower Combat Kills 158 Aligned with FarCom 300 Friendly Fire -32 Cogmind --------- Core Integrity 0/1150 Matter 243/300 Energy 100/100 System Corruption 43% Temperature Cool (0) Movement Core (50) Location -4/Factory Parts ------- > --- POWER (3) -------- (None) > --- PROPULSION (4) --- (None) > --- UTILITY (10) ----- (None) > --- WEAPON (2) ------- (None) > --- INVENTORY (5) ---- Advanced Medium Treads Stealth Drone Bay (2/2) Peak State ------------ > --- POWER ------------ Light Angular Momentum Engine Micro Fission Core > --- PROPULSION ------- Advanced Medium Treads Antigrav System Antigrav System Improved Linear Gravjet > --- UTILITY ---------- Advanced Power Amplifier Advanced Cryofiber Web Advanced Weight Redist. System Improved Signal Interpreter Improved Target Analyzer Quantum Capacitor Improved Cloaking Device Hacking Suite Advanced Hacking Suite > --- WEAPON ----------- Heavy Phase Cannon > --- INVENTORY -------- Antigrav System Cesium-ion Thruster Improved Transmission Jammer Advanced ECM Suite Cloaking Device [Rating: 100] Favorites ----------- Power Improved Ion Engine Engine Improved Ion Engine Power Core Light Nuclear Core Reactor Antimatter Reactor Propulsion Light Treads Treads Light Treads Leg Improved Carbon-fiber Leg Hover Unit Antigrav System Flight Unit Nuclear Pulse Thruster Utility Hacking Suite Device Advanced Weight Redist. System Storage Medium Matter Pod Processor Improved Signal Interpreter Hackware Hacking Suite Protection Light Armor Plating Weapon Flak Cannon Energy Gun Improved Spread Laser Energy Cannon Heavy Plasma Cannon Ballistic Gun Coil Gun Ballistic Cannon Flak Cannon Launcher Rocket Launcher Special Weapon Mining Laser Impact Weapon Hammer Build | -11 -10 -9 -9 -9 -8 -8 -7 -6 -6 -6 -5 -5 -5 -4 ------- Run | Yrd Mat Mat Min Exi Min Mat Fac Fac Was Fac Fac Upp Upp Fac Slots Evolved 12 | . . 2 . . . 2 2 2 . . 2 . . 2 Power 2 | . . . . . . . 1 . . . . . . 1 Propulsion 2 | . . . . . . 1 . . . . 1 . . . Utility 8 | . . 2 . . . 1 1 2 . . 1 . . 1 Weapon . | . . . . . . . . . . . . . . . Parts Attached 124 | 6 7 29 1 . . 7 15 8 2 19 3 3 . 24 Power 23 | 1 1 6 . . . 1 3 1 1 4 . 1 . 4 Engine 12 | 1 1 6 . . . . 1 1 . 1 . . . 1 Core 10 | . . . . . . 1 2 . . 3 . 1 . 3 Reactor 1 | . . . . . . . . . 1 . . . . . Propulsion 30 | 2 . 7 1 . . 3 4 . 1 3 . 1 . 8 Treads 10 | 2 . 4 . . . 1 . . 1 1 . . . 1 Leg 4 | . . 1 . . . . 3 . . . . . . . Wheel . | . . . . . . . . . . . . . . . Hover 8 | . . . . . . . 1 . . . . . . 7 Flight 8 | . . 2 1 . . 2 . . . 2 . 1 . . Utility 40 | 1 1 8 . . . 2 4 5 . 6 2 1 . 10 Device 26 | . 1 4 . . . 1 2 4 . 3 2 1 . 8 Storage 2 | 1 . 1 . . . . . . . . . . . . Processor 5 | . . 1 . . . . 2 1 . . . . . 1 Hackware 2 | . . . . . . 1 . . . . . . . 1 Protection 5 | . . 2 . . . . . . . 3 . . . . Artifact . | . . . . . . . . . . . . . . . Weapon 31 | 2 5 8 . . . 1 4 2 . 6 1 . . 2 Energy Gun 16 | 1 1 5 . . . . 3 . . 5 . . . 1 Energy Cannon 5 | . 2 . . . . . . 2 . . . . . 1 Ballistic Gun 2 | 1 . . . . . . . . . . 1 . . . Ballistic Cannon 2 | . . 2 . . . . . . . . . . . . Launcher 3 | . 1 1 . . . . . . . 1 . . . . Special Weapon 2 | . . . . . . 1 1 . . . . . . . Impact Weapon 1 | . 1 . . . . . . . . . . . . . Slashing Weapon . | . . . . . . . . . . . . . . . Piercing Weapon . | . . . . . . . . . . . . . . . Special Melee Weapon . | . . . . . . . . . . . . . . . Unidentified Prototypes 11 | . . 4 1 . . . 2 . . 1 . . . 3 Corrupted Parts 1 | . . . . . . . . . . . . . . 1 System Corruption 1 | . . . . . . . . . . . . . . 1 Parts Lost 49 | . . 6 . . . 2 . . 1 11 . 2 . 27 Power 7 | . . . . . . . . . . 2 . . . 5 Propulsion 14 | . . 3 . . . 1 . . . 2 . 1 . 7 Utility 21 | . . 2 . . . 1 . . 1 5 . . . 12 Weapon 7 | . . 1 . . . . . . . 2 . 1 . 3 Highest Loss Streak 10 | . . 2 . . . 2 . . 1 10 . 2 . 7 To Critical Strikes . | . . . . . . . . . . . . . . . Average Backups 3 | . 3 3 3 3 4 3 4 4 3 3 2 3 4 2 Power . | . . . . . . . 1 1 1 1 1 2 3 . Propulsion . | . . . 2 2 2 1 . . . . . . . . Utility 1 | . . . . . 1 . 1 2 1 . . 1 1 1 Weapon . | . 1 1 1 1 1 . 1 1 . . . . . . Tool/Special . | . . . . . . . . . . . . . . . Unused Backups 7 | . . 1 1 . . . 3 . 2 . . . . . Power 1 | . . . . . . . . . 1 . . . . . Propulsion 1 | . . . 1 . . . . . . . . . . . Utility 1 | . . . . . . . . . 1 . . . . . Weapon 3 | . . . . . . . 3 . . . . . . . Tool/Special 1 | . . 1 . . . . . . . . . . . . Average Slot Usage (%) 78 | . 96 86 100 100 100 89 84 99 76 70 59 71 64 51 Engine 5 | . 14 11 11 11 11 6 1 7 5 2 5 5 5 2 Core 3 | . . . . . . 2 9 4 . 6 . 3 . 1 Treads 8 | . 28 17 22 22 22 15 . . 3 5 . . . . Leg 3 | . . . . . . . 10 20 9 . . . . . Hover 1 | . . . . . . . 4 . . . . . . 4 Flight 2 | . . 1 . . . 6 2 . . . 11 14 11 4 Device 21 | . 11 19 22 22 22 18 17 32 28 23 17 23 23 24 Storage 3 | . 14 2 11 11 11 9 5 . . . . . . . Processor 8 | . . 6 11 11 11 9 10 12 13 13 11 11 11 4 Hackware 3 | . . . . . . 5 7 6 6 6 5 5 5 4 Protection 1 | . . 7 . . . . . . . 2 . . . . Energy Gun 4 | . 6 9 . . . . 4 2 . 7 5 4 . . Energy Cannon 2 | . 18 . . . . . . 10 7 . . . . 1 Ballistic Cannon 3 | . . 7 22 22 22 11 . . . . . . . . Special Weapon 1 | . . . . . . 5 5 . . . . . . . Peak Build Rating 100 | 6 10 16 17 16 16 25 47 64 75 63 54 62 49 100 Average Rating 36 | 5 9 12 15 15 16 19 31 61 54 51 44 54 49 55 On Entrance 28 | . 6 9 16 15 16 16 16 47 64 36 42 50 49 49 Avg Prop Armor Cover (%) 5 | . . . . . . . 5 . 5 . . . . 5 Naked Turns 234 | . . . . . . . . . . . . . . 234 Heaviest Build 58 | 11 21 23 22 22 22 30 37 51 58 34 21 30 20 34 Greatest Support 79 | 40 40 46 46 46 46 66 43 52 79 79 21 26 20 52 Greatest Overweight (x) 5 | . . 5 . . . . 1 1 . . . 1 . 2 Average Overweight (x) . | . . . . . . . . . . . . . . . Largest Inventory Capacity 8 | 8 8 8 5 5 5 5 5 5 5 5 5 5 5 5 Average Capacity 5 | 6 8 5 5 5 5 5 5 5 5 5 5 5 5 5 Most Carried 5 | . 5 5 4 4 4 5 5 5 5 5 5 5 4 5 Average Carried 3 | . 3 3 3 3 4 3 4 4 4 3 3 4 4 3 Final Capacity 8 | 8 8 5 5 5 5 5 5 5 5 5 5 5 5 5 Final Carried 5 | . 3 4 3 4 4 3 4 5 4 1 5 4 4 3 Class Distribution -------------------- 42% | Hacker-Mutant 29% | Mutant 11% | Scavenger-Mutant 8% | Hacker-Skirmisher Dominant Class ---------------- Mutant | -10/Materials Mutant | -9/Materials Mutant | -9/Mines Mutant | -9/Exiles Mutant | -8/Mines Hacker-Mutant | -8/Materials Hacker-Mutant | -7/Factory Hacker-Mutant | -6/Factory Hacker-Mutant | -6/Waste Hacker-Mutant | -6/Factory Hacker-Mutant | -5/Factory Hacker-Mutant | -5/Upper Caves Hacker-Mutant | -5/Upper Caves Hacker-Mutant | -4/Factory Resources | -11 -10 -9 -9 -9 -8 -8 -7 -6 -6 -6 -5 -5 -5 -4 ----------- Run | Yrd Mat Mat Min Exi Min Mat Fac Fac Was Fac Fac Upp Upp Fac Matter Collected 2198 | 153 242 515 174 . . 196 199 52 73 118 . 198 . 278 Remotely . | . . . . . . . . . . . . . . . Salvage Created 4522 | . 298 1098 166 . . 222 160 110 818 953 . 110 . 587 Parts 200 | . 14 77 14 . . 11 4 8 9 35 . 3 . 25 Haulers Intercepted 4 | . 1 2 . . . . . . . . . . . 1 Recyclers Shooed 2 | . . . . . . . 1 . . 1 . . . . Parts Field Recycled . | . . . . . . . . . . . . . . . Retrieved Matter . | . . . . . . . . . . . . . . . Parts Self-Destructed 1 | . . . . . . . . . . . . 1 . . Prevented 5 | . . . . . . . . . . . . 5 . . Parts Restored . | . . . . . . . . . . . . . . . Kills | -11 -10 -9 -9 -9 -8 -8 -7 -6 -6 -6 -5 -5 -5 -4 ------- Run | Yrd Mat Mat Min Exi Min Mat Fac Fac Was Fac Fac Upp Upp Fac Combat Hostiles Destroyed 72 | . 6 27 5 . . 4 4 1 3 15 . 2 . 5 Melee 1 | . . 1 . . . . . . . . . . . . Guns 39 | . 2 18 . . . . 4 . . 13 . 2 . . Cannons 25 | . 4 5 5 . . 4 . 1 1 . . . . 5 AOE 4 | . . 3 . . . . . . . 1 . . . . Classes Destroyed 13 | . 4 5 1 . . . 1 1 1 . . . . . Worker 4 | . . 1 . . . 1 . . . 2 . . . . Builder 2 | . . 2 . . . . . . . . . . . . Tunneler 1 | . . 1 . . . . . . . . . . . . Hauler 4 | . 1 2 . . . . . . . . . . . 1 Recycler 4 | . . . 2 . . . . . . 1 . . . 1 Operator 3 | . . 2 . . . . . 1 . . . . . . Watcher 12 | . 2 4 . . . 1 . 2 . 2 . . . 1 Swarmer 17 | . 2 8 3 . . . . . . 4 . . . . Grunt 31 | . 4 11 2 . . 3 3 . . 7 . . . 1 Brawler 1 | . . . . . . . 1 . . . . . . . Sentry 11 | . . 8 . . . 1 . . . 1 . 1 . . Programmer 8 | . . . . . . . . 1 . 3 . . . 4 Compactor 3 | . . . . . . . . . 3 . . . . . Wasp 1 | . . . . . . . . . . . . 1 . . Best Kill Streak 7 | . 3 5 4 . . 5 3 2 2 7 . 1 . 2 Combat Bots Only 6 | . 2 3 3 . . 4 3 1 2 6 . 1 . 2 Max Kills in Single Turn 2 | . 1 2 1 . . 1 1 1 1 2 . 1 . 1 Gunslinging . | . . . . . . . . . . . . . . . Exploded 1 | . . 1 . . . . . . . 1 . . . . Melee 1 | . . 1 . . . . . . . . . . . . Uniques/NPCs Destroyed . | . . . . . . . . . . . . . . . Combat | -11 -10 -9 -9 -9 -8 -8 -7 -6 -6 -6 -5 -5 -5 -4 -------- Run | Yrd Mat Mat Min Exi Min Mat Fac Fac Was Fac Fac Upp Upp Fac Hostile Shots Fired 690 | . 37 200 34 . . 25 35 4 5 237 . 22 . 91 Missed 244 | . 13 66 10 . . 6 19 3 . 80 . 9 . 38 Hits 446 | . 24 134 24 . . 19 16 1 5 157 . 13 . 53 Melee 7 | . . . . . . . 2 . 5 . . . . . Projectile 439 | . 24 134 24 . . 19 14 1 . 157 . 13 . 53 Critical Strikes 16 | . . 2 . . . 1 1 1 3 3 . . . 5 Part Disruptions 2 | . . . . . . 2 . . . . . . . . Damage Taken 7462 | . 205 1188 144 . . 489 221 30 149 2036 . 183 . 2817 Core 1964 | . 35 280 13 . . 106 25 . 31 276 . 31 . 1167 Absorbed by Shields . | . . . . . . . . . . . . . . . Reduced by Siege Mode 64 | . . . . . . . . . . 64 . . . . Ignored by Resistances 1594 | . 63 362 50 . . 79 62 8 40 571 . 52 . 307 Regen/Repaired (Parts) 62 | . . . . . . . 62 . . . . . . . Core Remaining (%) 78 | 100 86 . . . 26 80 96 . . 63 . . 96 . Volleys Fired 318 | . 25 84 7 . . 20 30 6 13 55 . 11 . 67 Largest 2 | . 2 2 2 . . 2 1 2 2 2 . 2 . 2 Hottest 180 | . 136 117 74 . . 100 100 180 180 144 . 90 . 155 Shots Fired 469 | . 41 126 14 . . 30 30 12 26 108 . 13 . 69 Gun 257 | . 11 97 . . . . 19 . . 107 . 13 . 10 Cannon 181 | . 30 20 14 . . 20 . 12 26 . . . . 59 Launcher 10 | . . 9 . . . . . . . 1 . . . . Special 21 | . . . . . . 10 11 . . . . . . . Kinetic 65 | . . 20 14 . . 20 . . . . . 8 . 3 Thermal 353 | . 41 89 . . . 10 30 12 26 86 . . . 59 Explosive 9 | . . 9 . . . . . . . . . . . . Electromagnetic 42 | . . 8 . . . . . . . 22 . 5 . 7 Robot Hit Streak 29 | . 10 19 7 . . 6 29 20 12 21 . 9 . 11 Robot Miss Streak 6 | . 4 4 4 . . 6 5 1 1 1 . 1 . 5 Penetration Max . | . . . . . . . . . . . . . . . Secondary Targets 7 | . . 4 . . . . . . . 3 . . . . Max Gunslinging Chain 1 | . . 1 . . . . . . . 1 . . . . Capacitor 43 | . . . . . . . . . . . . . . 43 Shots Hit Robots 341 | . 26 103 12 . . 16 19 8 21 92 . 11 . 33 Core Hits 202 | . 12 58 18 . . 24 28 4 6 36 . 4 . 12 Critical Kills 2 | . . . . . . . . . 2 . . . . . Critical Parts Destroyed 1 | . . 1 . . . . . . . . . . . . Critical Strikes 12 | . . 6 . . . . . . 2 4 . . . . Burn 7 | . . 5 . . . . . . . 2 . . . . Meltdown 2 | . . . . . . . . . 2 . . . . . Corrupt 2 | . . . . . . . . . . 2 . . . . Smash 1 | . . 1 . . . . . . . . . . . . Melee Attacks 7 | . 1 6 . . . . . . . . . . . . Impact 7 | . 1 6 . . . . . . . . . . . . Slashing . | . . . . . . . . . . . . . . . Piercing . | . . . . . . . . . . . . . . . Sneak Attacks 1 | . 1 . . . . . . . . . . . . . Combat Hostiles . | . . . . . . . . . . . . . . . Follow-up Attacks . | . . . . . . . . . . . . . . . Damage Inflicted 8408 | . 522 2050 237 . . 523 500 315 732 2173 . 184 . 1172 Guns 3994 | . 97 1264 . . . . 500 . . 1896 . 184 . 53 Cannons 3155 | . 347 314 236 . . 275 . 293 732 . . . . 958 Explosions 983 | . . 323 . . . 248 . . . 266 . . . 146 Melee 202 | . 68 134 . . . . . . . . . . . . Ramming 74 | . 10 15 1 . . . . 22 . 11 . . . 15 Kinetic 950 | . . 314 236 . . 275 . . . . . 106 . 19 Thermal 5793 | . 444 1154 . . . . 500 293 732 1566 . . . 1104 Explosive 527 | . . 323 . . . . . . . 204 . . . . Electromagnetic 862 | . . 110 . . . 248 . . . 392 . 78 . 34 Impact 202 | . 68 134 . . . . . . . . . . . . Slashing . | . . . . . . . . . . . . . . . Piercing . | . . . . . . . . . . . . . . . Highest Corruption 43 | . . . . . . 3 1 1 1 3 . . . 43 Average Corruption 6 | . . . . . . 3 1 1 1 1 . . . 20 Corruption Purged . | . . . . . . . . . . . . . . . Corruption Blocked . | . . . . . . . . . . . . . . . Effects 78 | . . . . . . 1 12 2 2 18 . . . 43 Message Errors 18 | . . . . . . . 2 1 1 2 . . . 12 Matter Fused 17 | . . . . . . . 7 . . 4 . . . 6 Heat Flow Errors 9 | . . . . . . 1 1 . 1 1 . . . 5 Energy Discharges 9 | . . . . . . . 1 . . 2 . . . 6 Parts Rejected 2 | . . . . . . . . . . 2 . . . . Parts Fused 1 | . . . . . . . . . . . . . . 1 Data Loss (minor) 12 | . . . . . . . 1 1 . 2 . . . 8 Data Loss (major) 5 | . . . . . . . . . . 3 . . . 2 Misfires 3 | . . . . . . . . . . 1 . . . 2 Alerts 1 | . . . . . . . . . . 1 . . . . Weapon Failures 1 | . . . . . . . . . . . . . . 1 Overload Shots . | . . . . . . . . . . . . . . . Overflow Damage 297 | . 47 22 . . . . . 55 . 84 . . . 89 Projectiles 95 | . 1 . . . . . . 55 . . . . . 39 Explosions 134 | . . . . . . . . . . 84 . . . 50 Melee 68 | . 46 22 . . . . . . . . . . . . Knockbacks 14 | . . 2 4 . . 8 . . . . . . . . Impact . | . . . . . . . . . . . . . . . Kinetic 14 | . . 2 4 . . 8 . . . . . . . . Secondary . | . . . . . . . . . . . . . . . Self-Inflicted Damage 256 | . . 52 . . . 43 . . . 78 . . . 83 Shots 7 | . . 2 . . . 2 . . . 2 . . . 1 Rammed 11 | . 1 2 . . . . 1 . . 5 . . . 2 Targets Rammed 14 | . 1 3 1 . . . 1 1 . 5 . . . 2 Kicked 1 | . . . . . . . . 1 . . . . . . Crushed 2 | . . 1 1 . . . . . . . . . . . Highest Temperature 641 | . 528 267 . . . 16 139 294 68 318 . 28 . 641 Average Temperature 135 | . 191 58 . . . 10 42 156 45 197 . 16 . 167 Received Heat Transfer 1590 | . 90 381 15 . . 171 72 . . 777 . 45 . 39 Effects 38 | . 10 . . . . . . 1 . 1 . . . 26 Shutdowns 6 | . 2 . . . . . . . . . . . . 4 Energy Bleed 5 | . 2 . . . . . . 1 . 1 . . . 1 Interference 10 | . 2 . . . . . . . . . . . . 8 Matter Decay 4 | . 2 . . . . . . . . . . . . 2 Short Circuit 3 | . 1 . . . . . . . . . . . . 2 Damage (minor) 3 | . 1 . . . . . . . . . . . . 2 Damage (major) 7 | . . . . . . . . . . . . . . 7 Siege Activations 2 | . . . . . . . . . . 2 . . . . Total Turns 43 | . . . . . . . . . . 43 . . . . Longest Duration 33 | . . . . . . . . . . 33 . . . . Martial Activations . | . . . . . . . . . . . . . . . Shielding Activations . | . . . . . . . . . . . . . . . Robots Disrupted . | . . . . . . . . . . . . . . . Combat Hostiles . | . . . . . . . . . . . . . . . Robots Corrupted 1 | . . . . . . . . . . 1 . . . . Combat Hostiles 1 | . . . . . . . . . . 1 . . . . Parts Fried 3 | . . 1 . . . 1 . . . 1 . . . . Impact Corruptions 2 | . 1 1 . . . . . . . . . . . . Robots Melted 2 | . . . . . . . . . 2 . . . . . Combat Hostiles 2 | . . . . . . . . . 2 . . . . . Parts Melted 27 | . 1 7 . . . . . 1 6 8 . . . 4 Heat Transferred 9860 | . 854 2664 . . . . 420 400 1150 3384 . . . 988 Parts Sabotaged . | . . . . . . . . . . . . . . . Parts Stolen . | . . . . . . . . . . . . . . . Parts Stripped . | . . . . . . . . . . . . . . . Power Chain Reactions . | . . . . . . . . . . . . . . . Alert | -11 -10 -9 -9 -9 -8 -8 -7 -6 -6 -6 -5 -5 -5 -4 ------- Run | Yrd Mat Mat Min Exi Min Mat Fac Fac Was Fac Fac Upp Upp Fac Maximum Alert Level 1 | . . 1 . . . 1 . . . . . . . . Low Security (%) 98 | 100 100 93 100 . 100 97 100 100 100 100 100 . . 100 Level 1 1 | . . 6 . . . 2 . . . . . . . . Level 2 . | . . . . . . . . . . . . . . . Level 3 . | . . . . . . . . . . . . . . . Level 4 . | . . . . . . . . . . . . . . . Level 5 . | . . . . . . . . . . . . . . . High Security . | . . . . . . . . . . . . . . . Max Security . | . . . . . . . . . . . . . . . Peak Influence 246 | . 57 246 126 . . 208 74 37 2 165 63 . . 111 Initial 63 | . . . 21 . . . 22 . . . 63 . . 3 Average 40 | . 13 117 62 . . 97 12 1 . 39 56 . . 12 Influence Increases 2779 | . 180 855 175 . . 256 226 53 2 651 . 20 . 361 Destroy 0b10 Robot/C 1440 | . 120 540 100 . . 80 160 20 . 300 . 20 . 100 Destroy 0b10 Robot/NC 150 | . 15 60 10 . . 10 . 15 . 25 . . . 15 Destroy Leader 382 | . 36 162 20 . . 22 30 14 . 74 . . . 24 Allied During Kill 7 | . . . . . . . 7 . . . . . . . Successful Hack 62 | . . . . . . 3 20 2 . 37 . . . . Disable Machine 117 | . 9 18 . . . 27 9 . . 36 . . . 18 Destroy Structure 186 | . . 60 . . . 9 . 2 2 29 . . . 84 Partial Spotted 15 | . . . . . . . . . . 15 . . . . Lose Combat Pursuer 420 | . . 15 45 . . 105 . . . 135 . . . 120 Influence Decreases 2779 | . 180 790 124 116 . 197 285 53 2 499 109 53 4 367 Entered New Map 314 | . . . 44 116 . . 37 . . . 89 21 4 3 Time Decay 2183 | . 180 730 80 . . 177 248 53 2 389 20 32 . 272 Lost Part 282 | . . 60 . . . 20 . . . 110 . . . 92 Squads Dispatched 28 | . . 2 . . . 2 2 2 . 10 . . . 10 Investigation 8 | . . . . . . 2 . 1 . 2 . . . 3 Extermination 10 | . . . . . . . 2 1 . 3 . . . 4 Reinforcement 10 | . . 2 . . . . . . . 5 . . . 3 Assault . | . . . . . . . . . . . . . . . Garrison . | . . . . . . . . . . . . . . . Intercept . | . . . . . . . . . . . . . . . Searches Triggered . | . . . . . . . . . . . . . . . Construction Impeded 1 | . . . . . . . . . . 1 . . . . Haulers Reinforced 2 | . . . . . . . . . . 1 . . . 1 Active Scanning Responses . | . . . . . . . . . . . . . . . Cargo Convoy Interrupts . | . . . . . . . . . . . . . . . Stealth | -11 -10 -9 -9 -9 -8 -8 -7 -6 -6 -6 -5 -5 -5 -4 --------- Run | Yrd Mat Mat Min Exi Min Mat Fac Fac Was Fac Fac Upp Upp Fac Distress Signals 3 | . . 1 . . . 1 . . . 1 . . . . Communications Jammed . | . . . . . . . . . . . . . . . Distress Signals . | . . . . . . . . . . . . . . . Times Spotted 155 | . 10 38 8 . . 10 12 3 6 39 . 10 . 19 Peak Tracking Total 8 | . 3 5 3 . . 5 5 1 3 8 . 7 . 6 Tactical Retreats 12 | . . 1 2 . . 2 . . . 3 . . . 4 ECM-based Alert Blocks 3 | . . . . . . . . . . 3 . . . . Traps | -11 -10 -9 -9 -9 -8 -8 -7 -6 -6 -6 -5 -5 -5 -4 ------- Run | Yrd Mat Mat Min Exi Min Mat Fac Fac Was Fac Fac Upp Upp Fac Traps Triggered 8 | . . 2 . . . . 1 2 . . . . . 3 Indirectly . | . . . . . . . . . . . . . . . Trap Hack Attempts . | . . . . . . . . . . . . . . . Triggered . | . . . . . . . . . . . . . . . Disarmed . | . . . . . . . . . . . . . . . Reprogrammed . | . . . . . . . . . . . . . . . Reused . | . . . . . . . . . . . . . . . Traps Extracted . | . . . . . . . . . . . . . . . Installed . | . . . . . . . . . . . . . . . Triggered . | . . . . . . . . . . . . . . . Machines | -11 -10 -9 -9 -9 -8 -8 -7 -6 -6 -6 -5 -5 -5 -4 ---------- Run | Yrd Mat Mat Min Exi Min Mat Fac Fac Was Fac Fac Upp Upp Fac Machines Disabled 13 | . 1 2 . . . 3 1 . . 4 . . . 2 Max in Single Turn 3 | . 1 1 . . . 3 1 . . 2 . . . 2 Machines Repaired . | . . . . . . . . . . . . . . . Machines Dismantled . | . . . . . . . . . . . . . . . Machines Sabotaged . | . . . . . . . . . . . . . . . Overloaded Fab Kills . | . . . . . . . . . . . . . . . Hacking | -11 -10 -9 -9 -9 -8 -8 -7 -6 -6 -6 -5 -5 -5 -4 --------- Run | Yrd Mat Mat Min Exi Min Mat Fac Fac Was Fac Fac Upp Upp Fac Machines Accessed 23 | . 1 2 . 1 . 3 3 2 . 4 1 1 . 5 Terminals 13 | . 1 2 . . . 1 . 2 . 4 . . . 3 Fabricators 2 | . . . . . . . 1 . . . 1 . . . Repair Stations 1 | . . . . . . . 1 . . . . . . . Recycling Units 2 | . . . . . . 1 . . . . . . . 1 Scanalyzers 3 | . . . . . . 1 1 . . . . . . 1 Garrison Access . | . . . . . . . . . . . . . . . Total Hacks 68 | . 2 7 . 1 . 15 9 4 . 15 1 1 . 13 Successful 44 | . 1 2 . 1 . 12 9 3 . 10 1 1 . 4 Failed 24 | . 1 5 . . . 3 . 1 . 5 . . . 9 Catastrophic 2 | . . . . . . 1 . . . . . . . 1 Database Lockouts . | . . . . . . . . . . . . . . . Manual 4 | . . . . 1 . . . . . 1 . . . 2 Terminals 40 | . 2 7 . . . 4 . 4 . 15 . . . 8 Fabricators 2 | . . . . . . . 1 . . . 1 . . . Repair Stations 4 | . . . . . . . 4 . . . . . . . Recycling Units 4 | . . . . . . 3 . . . . . . . 1 Scanalyzers 16 | . . . . . . 8 4 . . . . . . 4 Garrison Access . | . . . . . . . . . . . . . . . Terminal Hacks 22 | . 1 2 . 1 . 3 . 3 . 10 . 1 . 1 Record 10 | . . . . . . . . 3 . 6 . 1 . . Robot Analysis 5 | . 1 2 . . . . . . . 2 . . . . Level Access Points 1 | . . . . . . . . . . 1 . . . . Alert Level 2 | . . . . . . 1 . . . 1 . . . . Dispatch Records 1 | . . . . . . . . . . . . . . 1 Transport Status 1 | . . . . . . 1 . . . . . . . . Zone Layout 1 | . . . . . . 1 . . . . . . . . Proto ID Catalog 1 | . . . . 1 . . . . . . . . . . Fabricator Hacks 2 | . . . . . . . 1 . . . 1 . . . Network Status 1 | . . . . . . . . . . . 1 . . . Build 1 | . . . . . . . 1 . . . . . . . Repair Station Hacks 4 | . . . . . . . 4 . . . . . . . Scan Component 2 | . . . . . . . 2 . . . . . . . Repair 2 | . . . . . . . 2 . . . . . . . Recycling Unit Hacks 1 | . . . . . . 1 . . . . . . . . Report Inventory 1 | . . . . . . 1 . . . . . . . . Scanalyzer 15 | . . . . . . 8 4 . . . . . . 3 Insert Component 2 | . . . . . . 2 . . . . . . . . Analyze 2 | . . . . . . 2 . . . . . . . . Retrieve Study 11 | . . . . . . 4 4 . . . . . . 3 Garrison Access Hacks . | . . . . . . . . . . . . . . . Unauthorized Hacks . | . . . . . . . . . . . . . . . Terminals . | . . . . . . . . . . . . . . . Fabricators . | . . . . . . . . . . . . . . . Repair Stations . | . . . . . . . . . . . . . . . Recycling Units . | . . . . . . . . . . . . . . . Scanalyzers . | . . . . . . . . . . . . . . . Garrison Access . | . . . . . . . . . . . . . . . Data Cores Recovered . | . . . . . . . . . . . . . . . Used . | . . . . . . . . . . . . . . . Hacking Detections 14 | . . 2 . . . 2 1 1 . 3 . . . 5 Full Trace Events 9 | . . 1 . . . 2 . 1 . 2 . . . 3 Feedback Events . | . . . . . . . . . . . . . . . Feedback Blocked . | . . . . . . . . . . . . . . . Robot Schematics Acquired . | . . . . . . . . . . . . . . . Robots Built 3 | . . . . . . . 3 . . . . . . . Authchips . | . . . . . . . . . . . . . . . Time 67 | . . . . . . . 67 . . . . . . . Total Robot Build Rating 12 | . . . . . . . 12 . . . . . . . Part Schematics Acquired 1 | . . . . . . 1 . . . . . . . . Parts Built . | . . . . . . . . . . . . . . . Authchips . | . . . . . . . . . . . . . . . Time . | . . . . . . . . . . . . . . . Total Part Build Rating . | . . . . . . . . . . . . . . . Part Studies Acquired 11 | . . . . . . 4 4 . . . . . . 3 Parts Repaired 2 | . . . . . . . 2 . . . . . . . Time 82 | . . . . . . . 82 . . . . . . . Parts Recycled . | . . . . . . . . . . . . . . . Recycled Matter . | . . . . . . . . . . . . . . . Retrieved Matter . | . . . . . . . . . . . . . . . Retrieved Components . | . . . . . . . . . . . . . . . Parts Scanalyzed 1 | . . . . . . 1 . . . . . . . . Part Schematics Acquired 1 | . . . . . . 1 . . . . . . . . Parts Damaged . | . . . . . . . . . . . . . . . Bothacking | -11 -10 -9 -9 -9 -8 -8 -7 -6 -6 -6 -5 -5 -5 -4 ------------ Run | Yrd Mat Mat Min Exi Min Mat Fac Fac Was Fac Fac Upp Upp Fac Used RIF Installer . | . . . . . . . . . . . . . . . Robots Hacked . | . . . . . . . . . . . . . . . Non-combat . | . . . . . . . . . . . . . . . Combat . | . . . . . . . . . . . . . . . Robot Hacks Applied . | . . . . . . . . . . . . . . . Relay Couplers Released . | . . . . . . . . . . . . . . . Fabnet Peak Effective % . | . . . . . . . . . . . . . . . Robots Rewired . | . . . . . . . . . . . . . . . Allies Hacked . | . . . . . . . . . . . . . . . Hacks Repelled . | . . . . . . . . . . . . . . . Allies | -11 -10 -9 -9 -9 -8 -8 -7 -6 -6 -6 -5 -5 -5 -4 -------- Run | Yrd Mat Mat Min Exi Min Mat Fac Fac Was Fac Fac Upp Upp Fac Total Allies 4 | . . . . . . . 3 . 1 . . . . . Largest Group 3 | . . . . . . . 3 . 1 . . . . . Highest-Rated Group 90 | . . . . . . . 90 . 31 . . . . . Highest-Rated Ally 31 | . . . . . . . 30 . 31 . . . . . Total Orders 7 | . . . . . . . 4 . . . . . . 3 GUARD 4 | . . . . . . . 4 . . . . . . . EXPLORE 3 | . . . . . . . . . . . . . . 3 Ally Attacks 17 | . . . . . . . 14 . 3 . . . . . Total Damage 421 | . . . . . . . 379 . 42 . . . . . Kills 4 | . . . . . . . 4 . . . . . . . Allies Corrupted . | . . . . . . . . . . . . . . . Allies Melted . | . . . . . . . . . . . . . . . Intel | -11 -10 -9 -9 -9 -8 -8 -7 -6 -6 -6 -5 -5 -5 -4 ------- Run | Yrd Mat Mat Min Exi Min Mat Fac Fac Was Fac Fac Upp Upp Fac Active Infowar (turns) 5509 | . 508 588 . . . 1 1145 643 201 1272 44 195 11 901 Optics 2416 | . . . . . . . . 616 201 1272 44 195 11 77 Sensors 2335 | . 508 561 . . . . 1098 168 . . . . . . Terrain 531 | . . 364 . . . . . . . 167 . . . . Cloaking 1799 | . . . . . . 1 231 605 122 . . . . 840 Jamming 175 | . . . . . . . . . . . 6 167 . 2 ECM 60 | . . . . . . . 19 38 . 2 . . . 1 Robot Analysis Total 5 | . 1 2 . . . . . . . 2 . . . . Derelict Logs Recovered 1 | . . . . . . . . . . . . 1 . . Drone Launches 3 | . . . . . . . . . . . . . . 3 Drone Recoveries 1 | . . . . . . . . . . . . . . 1 Exploration | -11 -10 -9 -9 -9 -8 -8 -7 -6 -6 -6 -5 -5 -5 -4 ------------- Run | Yrd Mat Mat Min Exi Min Mat Fac Fac Was Fac Fac Upp Upp Fac Turns Passed 8719 | 79 640 1529 175 350 36 444 1192 643 201 1272 44 195 11 1908 Spaces Moved 5838 | 48 344 930 94 219 23 277 736 484 107 694 102 490 33 1257 Core 121 | 5 . 38 . . . . . . . 78 . . . . Treads 2183 | 43 344 661 94 219 23 161 . . 69 470 . . . 99 Legs 865 | . . 7 . . . . 336 484 38 . . . . . Wheels . | . . . . . . . . . . . . . . . Hover 652 | . . . . . . . 167 . . . . . . 485 Flight 2017 | . . 224 . . . 116 233 . . 146 102 490 33 673 Fastest Speed 32 | 50 160 37 160 160 160 32 34 105 105 37 37 32 34 34 Average Speed 98 | 148 160 133 160 160 160 106 90 110 140 121 37 33 34 53 Slowest Speed 300 | 160 160 300 160 160 160 160 120 175 160 160 37 112 34 225 Overloaded Moves . | . . . . . . . . . . . . . . . Propulsion Burnouts . | . . . . . . . . . . . . . . . Robots Hopped 7 | . . 1 . . . . . . . 1 . . . 5 Potential Cave-ins 25 | . . . . . . 1 . . . . . . . 24 Cave-ins Triggered 22 | . . . . . . 1 . . . . . . . 21 Exploration Rate (%) 36 | 4 66 79 36 60 12 23 19 18 85 24 5 75 7 29 Regions Visited 14 Branch Regions 5 Pre-discovered Areas 1 | . . . . . . . . . . . . 1 . . Known Exits Taken 10 | . . 1 1 1 1 1 1 . . 1 1 1 1 . Unknown Exits Taken 2 | 1 1 . . . . . . . . . . . . . Scrap Searched 3 | . . . 1 . . . . . . . . 2 . . Spaces Dug 28 | . . . . . . 10 . . . . . . . 18 Terrain Destroyed 175 | . . 61 . . . 10 . 1 2 41 . . . 60 Melee . | . . . . . . . . . . . . . . . Projectile 45 | . . . . . . 10 . 1 2 . . . . 32 AOE 130 | . . 61 . . . . . . . 41 . . . 28 Terrain Rammed . | . . . . . . . . . . . . . . . Walls Destroyed . | . . . . . . . . . . . . . . . Machines Disabled . | . . . . . . . . . . . . . . . Actions | -11 -10 -9 -9 -9 -8 -8 -7 -6 -6 -6 -5 -5 -5 -4 --------- Run | Yrd Mat Mat Min Exi Min Mat Fac Fac Was Fac Fac Upp Upp Fac Total 8269 | 53 389 1070 104 219 22 377 1209 578 135 1003 107 508 32 2463 Wait 1866 | . . 3 . . . 58 411 76 7 219 . . . 1092 Move 5811 | 47 343 927 93 218 22 276 735 484 106 691 101 489 32 1247 Hop 7 | . . 1 . . . . . . . 1 . . . 5 Pick Up 28 | . 5 5 . 1 . 6 5 1 1 . 1 1 . 2 Fast Attach 83 | 6 3 13 . . . 2 12 3 1 16 3 3 . 21 Attach 25 | . 2 2 . . . 6 1 . . 6 . 1 . 7 Detach 12 | . . . . . . 1 . . . 3 2 1 . 5 Swap 40 | . 4 16 2 . . . 5 5 1 3 . . . 4 Drop 58 | . 5 10 1 . . 8 9 2 6 4 . 2 . 11 Fire 318 | . 25 84 7 . . 20 30 6 13 55 . 11 . 67 Melee 7 | . 1 6 . . . . . . . . . . . . Ram 3 | . . . . . . . 1 . . . . . . 2 Kick 1 | . . . . . . . . 1 . . . . . . Crush 10 | . 1 3 1 . . . . . . 5 . . . . Escape Stasis . | . . . . . . . . . . . . . . . Rewire . | . . . . . . . . . . . . . . . Trap . | . . . . . . . . . . . . . . . Miscellaneous . | . . . . . . . . . . . . . . . Route ------- -11/Scrapyard -10/Materials (discovered 3 exits: *Mat x3) -9/Materials (discovered 5 exits: *Mat x3 / *Min / [*Sto]) -9/Mines -9/Exiles -8/Mines -8/Materials -7/Factory -6/Factory -6/Waste -6/Factory (discovered 4 exits: *Fac x4) -5/Factory -5/Upper Caves -5/Upper Caves -4/Factory History --------- Turn | Location | Event 12 | -11/Scrapyard | Discovered new exit (range 14) 80 | -11/Scrapyard | Entered Materials 308 | -10/Materials | Build established: Mutant 318 | -10/Materials | Discovered new exit (range 15) 401 | -10/Materials | Discovered new exit (range 12) 557 | -10/Materials | Discovered new exit (range 3) 720 | -10/Materials | Entered another Materials area 720 | -9/Materials | Evolved 2 slots: Utility x2 759 | -9/Materials | Discovered new exit (range 13) 1448 | -9/Materials | Core integrity fell below 50% 1483 | -9/Materials | Discovered new exit (range 9) 1486 | -9/Materials | Identified exit to Materials 1720 | -9/Materials | Discovered exit to Materials (range 10) 2051 | -9/Materials | Discovered exit to Materials (range 15) 2131 | -9/Materials | Discovered new exit (range 8) 2142 | -9/Materials | Identified exit to Mines 2249 | -9/Materials | Entered Mines 2282 | -9/Mines | Assembled infested the area 2307 | -9/Mines | Met 8R-AWN 2418 | -9/Mines | Discovered new exit (range 5) 2423 | -9/Mines | Identified exit to Exiles 2424 | -9/Mines | Entered Exiles 2474 | -9/Exiles | Welcomed by 8R-AWN 2498 | -9/Exiles | Met EX-HEX 2546 | -9/Exiles | Met EX-BIN 2568 | -9/Exiles | Aligned with FarCom system 2570 | -9/Exiles | Given EX-Vault access code 2607 | -9/Exiles | Opened EX-Vault 2616 | -9/Exiles | Found Cloak of Protection 2649 | -9/Exiles | Warned to stay clear of 0b10 Research branches 2696 | -9/Exiles | Met EX-DEC 2755 | -9/Exiles | Discovered new exit (range 10) 2773 | -9/Exiles | Identified exit to Mines 2774 | -9/Exiles | Left Exiles lab with Cloak of Protection 2774 | -9/Exiles | Entered Mines 2797 | -8/Mines | Discovered exit to Materials (range 9) 2810 | -8/Mines | Entered Materials 2810 | -8/Materials | Evolved 2 slots: Propulsion x1, Utility x1 3175 | -8/Materials | Crushed by falling debris 3240 | -8/Materials | Discovered new exit (range 4) 3244 | -8/Materials | Identified exit to Factory 3254 | -8/Materials | Entered Factory 3254 | -7/Factory | Evolved 2 slots: Power x1, Utility x1 3398 | -7/Factory | Fabricated L-41 Fighter (x3) 3746 | -7/Factory | Build established: Hacker-Mutant 4111 | -7/Factory | Build established: Hacker-Skirmisher 4271 | -7/Factory | Repaired Imp. Sensor Array 4315 | -7/Factory | Repaired Imp. Carbon-fiber Leg+ 4344 | -7/Factory | Discovered new exit (range 15) 4445 | -7/Factory | Identified exit to Factory 4446 | -7/Factory | Entered another Factory area 4446 | -6/Factory | Evolved 2 slots: Utility x2 4916 | -6/Factory | Build established: Hacker-Mutant 5089 | -6/Factory | Sucked down chute 5089 | -6/Factory | Entered Waste 5090 | -6/Waste | Met a frightened Derelict 5108 | -6/Waste | Spotted C-40 Crusher 5109 | -6/Waste | Spotted C-40 Crusher 5109 | -6/Waste | Spotted C-40 Crusher 5122 | -6/Waste | Destroyed C-40 Crusher 5126 | -6/Waste | Destroyed C-40 Crusher 5145 | -6/Waste | Spotted C-40 Crusher 5155 | -6/Waste | Destroyed C-40 Crusher 5165 | -6/Waste | Spotted C-40 Crusher 5195 | -6/Waste | Spotted C-40 Crusher 5198 | -6/Waste | Crushed by Compactor (0 parts destroyed, 2 dropped) 5202 | -6/Waste | Crushed by Compactor (0 parts destroyed, 1 dropped) 5211 | -6/Waste | Crushed by Compactor (1 part destroyed, 1 dropped) 5214 | -6/Waste | Crushed by Compactor (0 parts destroyed, 1 dropped) 5217 | -6/Waste | Crushed by Compactor (0 parts destroyed, 1 dropped) 5276 | -6/Waste | Discovered new exit (range 10) 5289 | -6/Waste | Identified exit to Factory 5290 | -6/Waste | Entered Factory 6435 | -6/Factory | Identified exit to Factory 6463 | -6/Factory | Lost 10 parts (2p2n4u2w) 6562 | -6/Factory | Entered another Factory area 6562 | -5/Factory | Evolved 2 slots: Propulsion x1, Utility x1 6592 | -5/Factory | Discovered new exit (range 22) 6599 | -5/Factory | Identified exit to Upper Caves 6606 | -5/Factory | Entered Upper Caves 6725 | -5/Upper Caves | Entered a destroyed Warlord outpost 6726 | -5/Upper Caves | Learned location of Armory (-3) 6755 | -5/Upper Caves | Attracted the attention of an 0b10 checkpoint 6786 | -5/Upper Caves | Discovered new exit (range 20) 6801 | -5/Upper Caves | Identified exit to Upper Caves 6801 | -5/Upper Caves | Entered another Upper Caves area 6805 | -5/Upper Caves | Spotted B-75 Beast 6809 | -5/Upper Caves | Discovered new exit (range 10) 6812 | -5/Upper Caves | Identified exit to Factory 6812 | -5/Upper Caves | Entered Factory 6812 | -4/Factory | Evolved 2 slots: Power x1, Utility x1 6824 | -4/Factory | Spotted B-86 Titan 6831 | -4/Factory | Found Quantum Capacitor 7957 | -4/Factory | Lost 7 parts (1p2n3u1w) 8135 | -4/Factory | System corruption reached 10% 8278 | -4/Factory | Crushed by falling debris 8288 | -4/Factory | Crushed by falling debris 8288 | -4/Factory | System corruption reached 30% 8319 | -4/Factory | Lost 7 parts (1p1n4u1w) 8324 | -4/Factory | Crushed by falling debris 8354 | -4/Factory | Crushed by falling debris 8358 | -4/Factory | Crushed by falling debris 8418 | -4/Factory | Crushed by falling debris 8434 | -4/Factory | Crushed by falling debris 8442 | -4/Factory | Crushed by falling debris 8465 | -4/Factory | Lost 3 parts (1n2u) 8475 | -4/Factory | Crushed by falling debris 8480 | -4/Factory | Crushed by falling debris 8487 | -4/Factory | Crushed by falling debris 8489 | -4/Factory | Crushed by falling debris 8489 | -4/Factory | Core integrity fell below 50% 8518 | -4/Factory | Lost 3 parts (1n2u) 8525 | -4/Factory | Crushed by falling debris 8560 | -4/Factory | Crushed by falling debris 8570 | -4/Factory | Crushed by falling debris 8579 | -4/Factory | Crushed by falling debris 8584 | -4/Factory | Crushed by falling debris 8602 | -4/Factory | Crushed by falling debris 8602 | -4/Factory | Core integrity fell below 20% 8638 | -4/Factory | Crushed by falling debris 8641 | -4/Factory | Crushed by falling debris 8721 | -4/Factory | Crushed by falling debris 8721 | -4/Factory | Smashed by cave-in Last Messages --------------- Crushed by falling debris. The unstable cave ceiling collapses. Crushed by falling debris. System corrupted: Substantial component data lost. System corrupted: Component data lost. The unstable cave ceiling collapses. Crushed by falling debris. >/EB1WWU RX:G581HD6RFCVAC TH4 9FPIGBSGZ3DCV&MKZ XX5K The unstable cave ceiling collapses. Crushed by falling debris. The unstable cave ceiling collapses. Crushed by falling debris. System corrupted: Matter fused (-8). System corrupted: Energy discharge (-36). 6QK7|3DHZK/CV9B7N